bitfinex/quotes_ETHUSD_20260126
["timestamp","ask_amount","ask_price","bid_price","bid_amount"]
[1769467386165,10.37679886,2932.8,2931.7,6.2446027]
[1769467395192,10.37679886,2932.8,2931.9,0.001]
[1769467395692,10.37879886,2932.8,2931.9,0.001]
[1769467408413,10.37879886,2932.8,2932.1,0.001]
[1769467419904,11.23123594,2932.8,2931.9,0.001]
[1769467420223,10.32573752,2932.6,2931.9,0.001]
[1769467421814,11.17823976,2932.6,2931.9,0.001]
[1769467427652,11.89323976,2932.6,2931.7,0.001]
[1769467430752,10.21397646,2932.3,2930.7,5.7218288]
[1769467431052,10.21397646,2932.3,2930.8,9.978039]
[1769467431415,10.21397646,2932.3,2930.7,5.7218288]
[1769467431656,10.21397646,2932.1,2930.7,5.7218288]
[1769467431825,10.21397646,2932.1,2931.9,0.001]
[1769467432025,10.21397646,2931.9,2930.7,5.7218288]
[1769467432748,10.21397646,2931.9,2930.7,15.6998678]
[1769467433517,11.0666929,2931.9,2930.7,9.978039]
[1769467433718,10.21397646,2931.7,2930.2,9.978039]
[1769467433960,10.21397646,2931.5,2930.1,5.7218288]
[1769467434139,10.21397646,2931.5,2930.2,9.978039]
[1769467434464,1.03787989,2931.6,2930.2,9.978039]
[1769467434662,11.25185635,2931.6,2930.2,9.978039]
[1769467435879,11.06678219,2931.5,2930.2,9.978039]
[1769467436073,11.42444267,2931.4,2930.2,11.54802578]
[1769467437364,11.42444267,2931.4,2930.2,9.978039]
[1769467443433,11.42444267,2931.4,2930.4,0.001]
[1769467444143,12.27728245,2931.4,2930.4,0.001]
[1769467450883,12.27728245,2931.4,2930.0,9.81910462]
[1769467454967,10.21397646,2931.1,2929.7,9.978039]
[1769467455283,10.92897646,2931.1,2929.7,9.978039]
[1769467455779,10.21397646,2930.9,2929.7,9.978039]
[1769467455946,10.21397646,2930.9,2930.2,0.001]
[1769467464609,11.06697143,2930.9,2930.2,0.001]
[1769467464772,10.81829087,2930.7,2930.2,0.001]
[1769467466992,11.67134221,2930.7,2930.2,0.001]
[1769467467581,11.67334221,2930.7,2930.2,0.001]
[1769467474021,11.67334221,2930.7,2929.1,5.73116334]
[1769467474022,10.81829087,2930.5,2929.3,10.57813795]
[1769467474247,10.81829087,2930.3,2929.3,10.57813795]
[1769467474922,10.81829087,2930.3,2929.1,0.001]
[1769467475122,10.81829087,2930.1,2929.1,0.001]
[1769467477255,0.85324232,2930.0,2929.1,0.001]
[1769467477457,3.41276658,2930.2,2929.1,0.001]
[1769467477458,10.81829087,2929.9,2929.1,0.001]
[1769467477725,11.46912475,2929.8,2929.1,0.001]
[1769467478915,10.81829087,2929.6,2929.1,0.001]
[1769467480524,10.81829087,2929.6,2929.3,0.001]
[1769467484042,0.716,2929.7,2929.3,0.001]
[1769467486406,0.716,2929.8,2929.3,0.001]
[1769467486609,1.23875652,2929.7,2929.3,0.001]
[1769467487030,12.05704739,2929.7,2929.3,0.001]
[1769467488736,12.76810444,2929.7,2929.3,0.001]
[1769467489863,1.95475652,2929.7,2929.3,0.001]
[1769467491250,1.23875652,2929.7,2929.3,0.001]
[1769467491764,0.716,2929.9,2929.3,0.001]
[1769467492043,0.716,2929.9,2929.5,0.001]
[1769467492846,0.716,2930.0,2929.5,0.001]
[1769467502061,10.81334792,2930.2,2929.5,0.001]
[1769467502362,0.716,2930.1,2929.5,0.001]
[1769467502528,1.15293479,2930.1,2929.5,0.001]
[1769467502729,1.15293479,2930.1,2929.5,10.42296453]
[1769467502930,0.716,2930.2,2929.5,10.42296453]
[1769467503130,10.81334792,2930.3,2929.5,0.001]
[1769467503357,1.92646621,2930.4,2929.5,10.42296453]
[1769467503738,0.716,2930.4,2929.5,10.42296453]
[1769467506982,0.002,2930.7,2929.5,10.42296453]
[1769467507862,0.002,2930.9,2929.7,10.42196453]
[1769467509677,10.81534792,2930.9,2929.7,10.42196453]
[1769467510072,0.002,2930.9,2929.9,10.42196453]
[1769467513478,10.81334792,2930.8,2929.8,1.61521279]
[1769467513682,10.81334792,2930.8,2929.6,5.73016334]
[1769467514085,10.81334792,2930.8,2929.7,10.42196453]
[1769467515183,10.81334792,2930.8,2929.7,10.42296453]
[1769467515485,0.002,2930.7,2929.7,10.42296453]
[1769467515786,10.81534792,2930.7,2929.7,10.42296453]
[1769467517500,10.81534792,2930.7,2929.8,12.03727732]
[1769467518064,0.002,2930.7,2929.8,12.03727732]
[1769467527494,0.002,2930.7,2930.0,0.001]
[1769467527679,0.002,2930.7,2930.1,10.33405831]
[1769467539387,0.002,2930.7,2930.3,0.001]
[1769467539588,0.002,2930.7,2930.3,1.03450583]
[1769467540620,0.002,2930.9,2930.3,1.03450583]
[1769467540828,10.19269232,2931.5,2930.3,1.03450583]
[1769467541724,10.19269232,2931.5,2930.3,0.001]
[1769467545022,10.19269232,2931.5,2930.3,10.33505831]
[1769467551603,0.002,2931.3,2930.3,10.33505831]
[1769467552000,9.78431073,2931.3,2930.3,10.33505831]
[1769467562043,0.002,2931.3,2930.3,10.33505831]
[1769467562217,0.002,2931.3,2930.5,9.91301404]
[1769467562533,0.002,2931.3,2930.7,9.91301404]
[1769467566040,0.002,2931.3,2930.5,9.91401404]
[1769467567428,0.002,2931.3,2930.5,10.76709599]
[1769467567708,0.002,2931.5,2930.9,9.91301404]
[1769467567931,0.002,2931.5,2931.1,9.91301404]
[1769467574847,0.002,2932.4,2931.4,9.91301404]
[1769467574848,9.614481,2932.4,2931.4,9.91301404]
[1769467576127,0.002,2931.5,2931.3,5.72880126]
[1769467576356,9.78231073,2932.1,2931.3,5.72880126]
[1769467576635,9.78231073,2932.5,2931.4,11.47719557]
[1769467586879,9.78231073,2932.5,2931.5,10.16919458]
[1769467587781,0.002,2932.3,2931.5,10.16919458]
[1769467588083,0.002,2932.3,2931.6,0.715]
[1769467588674,0.002,2932.3,2931.6,10.88419458]
[1769467588977,0.002,2932.3,2931.7,1.08841946]
[1769467599377,0.002,2932.1,2931.7,1.08841946]
[1769467603977,0.002,2932.1,2931.7,11.25761404]
[1769467607327,0.002,2932.1,2931.7,15.14761404]
[1769467608226,0.002,2932.1,2931.7,4.97841946]
[1769467608409,0.002,2932.1,2931.8,1.78507876]
[1769467617311,0.002,2932.3,2931.8,1.78507876]
[1769467622349,0.002,2932.1,2931.8,1.78507876]
[1769467622651,0.002,2932.3,2931.8,1.78507876]
[1769467629545,9.19442611,2932.3,2931.8,1.78507876]
[1769467634153,9.19442611,2932.3,2932.0,0.001]
[1769467634466,0.002,2932.1,2932.0,0.001]
[1769467660501,7.80277865,2932.1,2932.0,0.001]
[1769467660701,7.80277865,2932.1,2931.2,7.83860086]
[1769467660702,8.58325651,2932.1,2931.2,8.69147698]
[1769467661008,8.58325651,2932.1,2931.2,7.83860086]
[1769467661009,7.80277865,2932.1,2931.2,7.83860086]
[1769467662505,7.80277865,2932.1,2931.2,8.69149069]
[1769467663496,7.80277865,2932.1,2931.2,7.83860086]
[1769467663993,7.80277865,2932.1,2931.2,8.69148811]
[1769467664200,7.80277865,2932.1,2931.3,0.94064881]
[1769467665801,7.80277865,2932.1,2931.1,1.56789864]
[1769467665999,7.80277865,2932.1,2931.2,0.85288326]
[1769467666376,7.80277865,2932.1,2931.1,1.56790401]
[1769467666569,7.80277865,2932.1,2931.1,0.715]
[1769467666769,7.80277865,2932.1,2931.2,0.85287562]
[1769467667190,7.80277865,2932.1,2931.2,2.76493876]
[1769467667998,7.80277865,2932.1,2931.2,10.05875663]
[1769467668489,0.002,2932.1,2931.3,7.29381787]
[1769467669099,0.002,2932.1,2931.3,11.18381787]
[1769467669469,0.002,2932.1,2931.4,0.001]
[1769467669680,0.002,2932.1,2931.4,1.39597566]
[1769467670403,6.46822253,2932.1,2931.4,1.39597566]
[1769467670608,6.46822253,2932.1,2931.4,0.001]
[1769467671269,0.002,2932.1,2931.4,6.88845095]
[1769467678002,6.46822253,2932.1,2931.4,0.001]
[1769467680686,6.46822253,2932.1,2931.6,0.001]
[1769467685817,6.46622253,2931.8,2930.9,0.001]
[1769467685981,6.46622253,2931.6,2930.9,0.001]
[1769467689996,6.46622253,2931.6,2930.5,3.891]
[1769467690204,6.46622253,2931.6,2930.5,0.001]
[1769467692326,6.46622253,2931.6,2931.1,0.001]
[1769467696623,6.46622253,2931.6,2930.5,0.001]
[1769467696941,6.46622253,2931.4,2930.5,0.001]
[1769467701830,5.83275691,2931.2,2930.3,0.001]
[1769467704130,5.83275691,2931.2,2930.7,0.001]
[1769467705740,5.83275691,2931.2,2930.3,0.001]
[1769467705941,6.68565055,2931.2,2930.3,0.001]
[1769467706143,5.83275691,2931.0,2929.8,3.89]
[1769467706317,5.83275691,2931.0,2929.7,0.001]
[1769467706717,5.83275691,2930.9,2929.7,0.001]
[1769467713959,6.68574787,2930.9,2929.7,0.001]
[1769467715459,6.68574787,2930.9,2930.2,0.001]
[1769467720864,5.83275691,2930.6,2929.7,0.001]
[1769467721020,5.83275691,2930.4,2929.7,0.001]
[1769467721422,1.15619199,2930.5,2929.3,0.001]
[1769467721423,5.83275691,2929.9,2929.3,0.001]
[1769467721627,5.83275691,2929.6,2928.2,4.56930145]
[1769467722158,5.83275691,2929.4,2928.2,5.59914789]
[1769467722762,5.83275691,2929.4,2928.2,4.56930145]
[1769467727255,5.83275691,2929.4,2928.4,0.001]
[1769467728265,5.83275691,2929.4,2928.4,4.33666776]
[1769467728467,5.83275691,2930.1,2928.7,4.33566776]
[1769467729665,5.72916296,2930.0,2928.5,4.27207761]
[1769467729848,6.30312864,2929.9,2928.5,4.27207761]
[1769467730261,5.64489074,2929.6,2928.5,4.27207761]
[1769467730457,5.64489074,2929.6,2928.4,0.001]
[1769467730662,1.51151992,2929.9,2928.5,4.24077499]
[1769467730663,0.6582379,2929.9,2928.5,4.24077499]
[1769467730873,6.30312864,2929.9,2928.5,4.24077499]
[1769467731076,1.08475009,2929.8,2928.5,4.24077499]
[1769467732155,6.72964083,2929.8,2928.5,4.24077499]
[1769467738297,6.72964083,2929.8,2928.4,4.0042467]
[1769467739494,6.72964083,2929.8,2928.7,0.001]
[1769467739792,5.64489074,2929.6,2928.7,0.001]
[1769467739968,5.64489074,2929.4,2928.7,0.001]
[1769467752209,5.64489074,2929.4,2928.9,0.001]
[1769467755985,0.56468907,2929.5,2928.9,0.001]
[1769467760522,0.002,2929.7,2929.0,3.40924819]
[1769467760719,0.002,2929.7,2929.1,3.18558394]
[1769467761022,0.002,2929.9,2929.2,2.84255912]
[1769467763818,0.002,2929.3,2929.2,2.84255912]
[1769467764032,0.002,2929.5,2929.2,2.84255912]
[1769467764234,0.002,2929.5,2929.1,0.34102482]
[1769467764391,0.002,2929.5,2929.2,0.3108029]
[1769467768832,4.77446009,2929.5,2928.9,0.001]
[1769467775429,4.77446009,2929.5,2929.1,0.001]
[1769467784657,5.62785712,2929.5,2927.9,8.17098733]
[1769467784861,0.90413709,2929.4,2928.0,0.81709873]
[1769467785038,4.77246009,2929.3,2928.0,0.81709873]
[1769467787253,4.77246009,2929.3,2929.1,0.001]
[1769467787457,4.77446009,2929.3,2929.1,0.001]
[1769467789359,4.77446009,2929.3,2928.0,0.81709873]
[1769467789565,4.57246289,2929.1,2928.1,0.89880861]
[1769467790394,5.7323254,2928.7,2926.3,1.77876316]
[1769467790670,0.89244043,2927.9,2927.1,4.82866158]
[1769467790852,2e-08,2928.1,2927.1,4.82866158]
[1769467791226,5.21587674,2928.1,2926.8,4.82866158]
[1769467791932,4.36208077,2928.1,2926.8,4.82866158]
[1769467793069,2e-08,2928.1,2927.1,4.82866158]
[1769467793369,2e-08,2928.1,2927.4,4.82866158]
[1769467793667,2e-08,2928.1,2927.7,4.82866158]
[1769467796167,6.05045656,2929.1,2927.7,4.82866158]
[1769467799050,6.05045656,2929.1,2927.9,4.82966158]
[1769467799564,0.002,2928.9,2927.9,4.82966158]
[1769467799772,0.60744566,2928.9,2927.9,4.82966158]
[1769467808580,0.002,2928.9,2927.9,4.82966158]
[1769467808856,6.342,2928.9,2928.3,4.82866158]
[1769467809082,0.002,2929.1,2928.4,4.82866158]
[1769467809594,0.002,2929.1,2928.6,4.82866158]
[1769467809794,0.002,2929.3,2928.7,4.82866158]
[1769467811895,0.002,2928.9,2928.7,4.82866158]
[1769467812906,0.002,2929.1,2928.7,4.82866158]
[1769467816694,0.002,2929.3,2928.8,4.82866158]
[1769467816900,0.002,2929.9,2928.9,4.82866158]
[1769467817196,0.002,2929.9,2929.4,4.82866158]
[1769467817374,0.002,2930.7,2929.7,4.82866158]
[1769467817795,4.57246289,2930.5,2929.3,5.7323254]
[1769467817998,4.57246289,2930.4,2929.3,5.7323254]
[1769467818201,4.57246289,2930.4,2929.4,4.82866158]
[1769467820679,5.48096855,2930.6,2929.4,4.82866158]
[1769467820999,0.002,2930.7,2929.7,5.39142391]
[1769467822189,0.002,2930.7,2930.0,5.39142391]
[1769467822588,0.002,2930.7,2929.6,5.7323254]
[1769467822802,5.48296855,2930.7,2929.6,11.12374931]
[1769467823270,5.48296855,2930.7,2929.6,5.39142391]
[1769467823472,5.48296855,2930.7,2929.4,5.39142391]
[1769467823694,5.48096855,2930.5,2929.4,6.50379884]
[1769467823999,0.002,2930.1,2929.4,6.50379884]
[1769467826392,0.002,2930.3,2929.7,5.39142391]
[1769467827673,0.002,2930.3,2929.8,5.39142391]
[1769467843133,0.002,2930.3,2929.7,5.72934819]
[1769467843429,0.002,2930.3,2929.8,0.57303482]
[1769467843727,0.002,2930.3,2929.8,5.96445873]
[1769467848725,0.002,2930.3,2930.0,0.001]
[1769467849035,0.002,2930.1,2930.0,0.001]
[1769467849328,0.002,2930.3,2930.0,0.001]
[1769467850533,0.002,2930.3,2930.0,0.6706578]
[1769467852004,0.002,2930.3,2930.0,0.001]
[1769467853414,0.002,2930.3,2930.0,6.12354313]
[1769467858237,0.002,2930.3,2930.0,0.001]
[1769467860619,0.002,2930.1,2930.0,0.001]
[1769467860820,0.002,2930.3,2930.0,0.001]
[1769467864932,0.002,2930.3,2930.0,0.61335431]
[1769467865133,0.002,2930.3,2930.0,0.001]
[1769467871917,0.002,2930.1,2930.0,0.001]
[1769467872216,0.002,2930.3,2930.0,0.001]
[1769467876953,6.14773896,2930.7,2930.0,0.001]
[1769467877551,6.14773896,2930.7,2929.6,0.001]
[1769467877739,6.14573896,2930.5,2929.6,0.001]
[1769467883143,6.9988468,2930.5,2929.6,0.001]
[1769467883457,6.9988468,2930.5,2929.8,0.001]
[1769467883647,0.002,2930.3,2929.8,0.001]
[1769467883954,7.24264212,2930.2,2929.8,0.001]
[1769467884159,7.24264212,2930.0,2929.8,0.001]
[1769467893433,0.002,2930.3,2929.8,0.001]
[1769467898357,0.002,2930.3,2929.8,6.8644912]
[1769467898560,0.002,2930.5,2929.9,6.8634912]
[1769467899642,0.002,2930.7,2929.9,6.8634912]
[1769467899844,0.002,2930.7,2930.1,6.8634912]
[1769467900778,0.002,2931.5,2930.9,6.8634912]
[1769467900939,0.002,2931.7,2931.0,6.8634912]
[1769467902467,0.002,2932.3,2931.3,6.8634912]
[1769467902668,0.002,2932.3,2931.9,6.8634912]
[1769467902887,0.002,2932.6,2932.1,6.8634912]
[1769467904276,0.002,2932.6,2932.0,1.25953306]
[1769467904484,0.002,2932.6,2931.6,6.8634912]
[1769467906141,7.24464212,2932.6,2931.6,6.8634912]
[1769467906974,7.24464212,2932.6,2931.3,6.8634912]
[1769467907479,0.002,2932.6,2931.7,6.8634912]
[1769467907649,0.002,2932.6,2932.0,6.8634912]
[1769467908055,0.002,2932.7,2932.2,6.8634912]
[1769467909666,0.002,2932.7,2932.2,12.59533059]
[1769467909871,0.002,2932.7,2932.3,1.25953306]
[1769467911174,0.002,2932.7,2932.3,8.84865559]
[1769467912242,0.002,2932.7,2931.9,5.73183939]
[1769467912469,0.002,2932.7,2931.9,13.32096192]
[1769467912642,7.30909799,2932.7,2931.9,5.73183939]
[1769467913782,0.002,2932.7,2931.9,5.73183939]
[1769467914278,0.002,2932.7,2931.9,13.32096192]
[1769467914574,0.002,2932.7,2932.0,1.33209619]
[1769467918093,0.002,2932.7,2932.1,7.58912253]
[1769467918268,0.002,2932.8,2932.4,7.58912253]
[1769467920991,0.002,2932.8,2932.2,0.001]
[1769467920992,0.002,2933.3,2932.7,7.58912253]
[1769467921191,0.002,2933.3,2932.3,5.73183939]
[1769467921393,7.30909799,2933.3,2932.4,0.57328394]
[1769467922694,7.30909799,2933.3,2932.3,5.73183939]
[1769467922995,7.30909799,2933.3,2932.2,0.001]
[1769467924695,8.1613855,2933.3,2932.2,0.001]
[1769467926686,7.30909799,2933.3,2932.2,0.001]
[1769467931689,8.16138216,2933.3,2932.4,0.001]
[1769467931905,7.30909799,2933.1,2932.4,0.001]
[1769467937207,8.1614421,2933.1,2932.4,0.001]
[1769467937380,8.1614421,2933.1,2932.2,0.001]
[1769467941724,0.91613814,2933.0,2931.5,12.8809251]
[1769467941899,7.50201716,2932.9,2931.5,12.8809251]
[1769467942099,0.84181553,2932.8,2931.5,14.16901761]
[1769467942302,7.50201716,2932.7,2931.5,14.16901761]
[1769467943827,7.50201716,2932.7,2932.4,0.001]
[1769467944026,7.50201716,2932.7,2931.5,14.16901761]
[1769467946548,7.50201716,2932.7,2931.6,7.14908571]
[1769467947632,9.06948342,2932.7,2931.5,1.28809251]
[1769467947807,7.50201716,2932.5,2931.4,7.14908571]
[1769467949624,7.50201716,2932.5,2931.5,7.14908571]
[1769467951132,7.50201716,2932.5,2931.4,5.72308389]
[1769467951604,7.50201716,2932.5,2931.4,12.8721696]
[1769467952200,7.50201716,2932.5,2931.5,7.14908571]
[1769467952417,0.84089655,2932.4,2931.5,7.14908571]
[1769467953901,9.06948555,2932.7,2931.5,7.14908571]
[1769467955207,9.06948555,2932.7,2931.7,7.14908571]
[1769467958838,0.715,2932.7,2931.7,7.14908571]
[1769467962939,0.002,2932.9,2931.7,7.14908571]
[1769467963147,0.002,2932.9,2931.8,7.14908571]
[1769467963514,0.002,2932.9,2931.8,7.68949847]
[1769467965617,0.002,2932.9,2932.1,7.14908571]
[1769467965950,0.002,2933.1,2932.1,7.14908571]
[1769467967320,0.002,2932.6,2932.1,7.14908571]
[1769467979963,0.002,2932.6,2932.3,0.001]
[1769467980161,0.002,2932.6,2932.3,7.39065286]
[1769467980758,7.41059082,2932.6,2931.9,0.001]
[1769467980967,8.1496499,2932.5,2931.9,0.001]
[1769467991281,8.1496499,2932.5,2932.1,0.001]
[1769467991467,0.002,2932.3,2932.1,0.001]
[1769467997892,7.41059082,2932.3,2931.9,0.001]
[1769467998391,0.002,2932.3,2931.9,0.001]
[1769467998592,0.81736499,2932.3,2931.9,0.001]
[1769468003906,0.81736499,2932.3,2932.1,0.001]
[1769468005200,8.69434535,2932.3,2931.5,7.37432837]
[1769468012105,9.54692269,2932.3,2931.5,7.37432837]
[1769468012893,8.69434535,2932.3,2931.5,7.37432837]
[1769468013095,0.95469073,2932.2,2931.5,7.37432837]
[1769468013699,0.81736499,2932.3,2931.5,7.37432837]
[1769468013901,0.002,2932.3,2931.5,7.37432837]
[1769468015589,0.002,2932.3,2931.7,7.89838148]
[1769468015790,0.002,2932.1,2931.7,7.89838148]
[1769468023596,0.002,2932.5,2932.0,7.89738148]
[1769468023799,0.002,2932.6,2932.2,7.89738148]
[1769468027287,0.002,2932.3,2932.2,7.89738148]
[1769468027487,0.002,2932.6,2932.2,7.89738148]
[1769468039527,0.002,2932.6,2932.1,5.7240224]
[1769468039732,0.002,2932.4,2932.1,13.32942282]
[1769468039931,0.002,2932.6,2932.2,1.33294228]
[1769468040102,0.002,2932.6,2932.1,13.32942282]
[1769468040838,0.002,2932.6,2932.2,7.60540042]
[1769468041539,0.002,2932.6,2932.1,5.7240224]
[1769468041917,0.002,2932.6,2932.2,7.60540042]
[1769468043125,0.002,2932.6,2932.1,5.7240224]
[1769468044443,0.002,2932.6,2932.1,7.05696468]
[1769468047845,0.002,2932.6,2932.1,14.6623651]
[1769468048036,0.002,2932.6,2932.1,7.05696468]
[1769468050919,8.32411898,2932.6,2931.8,6.51386055]
[1769468051114,8.32411898,2932.6,2932.3,0.001]
[1769468051631,0.002,2932.4,2932.3,0.001]
[1769468052641,8.32411898,2932.4,2932.3,0.001]
[1769468056795,0.002,2932.4,2932.3,0.001]
[1769468056926,0.002,2932.6,2932.3,0.001]
[1769468057257,0.002,2932.8,2932.3,0.57350224]
[1769468057449,0.002,2932.8,2932.3,8.17890266]
[1769468062461,0.002,2932.8,2932.3,0.57350224]
[1769468062781,0.002,2932.8,2932.3,0.001]
[1769468062782,8.18945667,2932.7,2932.3,0.001]
[1769468063086,0.002,2932.6,2931.7,0.001]
[1769468063236,8.18945667,2932.5,2931.7,0.001]
[1769468065263,8.18945667,2932.5,2931.8,5.7240224]
[1769468065463,9.00860234,2932.4,2931.8,5.7240224]
[1769468071695,9.00860234,2932.4,2931.8,5.72225437]
[1769468072159,9.00860234,2932.4,2931.7,0.001]
[1769468072362,9.86115102,2932.4,2931.4,5.72225437]
[1769468073365,9.86115102,2932.4,2931.1,5.72225437]
[1769468073679,8.18945667,2932.2,2931.1,5.72225437]
[1769468074687,8.18945667,2932.0,2931.1,5.72225437]
[1769468076867,8.18945667,2931.8,2931.1,5.72225437]
[1769468078988,9.04218923,2931.8,2931.1,5.72225437]
[1769468079984,9.04213446,2932.0,2931.1,5.72225437]
[1769468080288,0.90421345,2931.9,2931.1,13.96382102]
[1769468080490,9.09367012,2931.9,2931.1,13.96382102]
[1769468080988,9.09367012,2931.9,2931.1,5.72225437]
[1769468081485,0.85450142,2932.6,2931.5,8.24156665]
[1769468081689,0.85450142,2932.6,2931.7,13.96382102]
[1769468082288,9.04395809,2932.6,2931.7,13.96382102]
[1769468086294,0.002,2932.4,2931.7,13.96382102]
[1769468086496,0.90659581,2932.4,2931.8,8.24156665]
[1769468086695,0.002,2932.4,2931.8,8.24156665]
[1769468097808,0.002,2932.2,2931.8,8.24156665]
[1769468103184,0.002,2932.2,2931.7,5.72225437]
[1769468103581,0.002,2932.2,2931.7,13.50334417]
[1769468107313,0.002,2932.2,2931.7,5.72225437]
[1769468107510,0.8589494,2932.2,2931.7,5.72225437]
[1769468108301,0.8589494,2932.2,2931.4,13.50334417]
[1769468108518,9.4244434,2932.2,2931.4,13.50334417]
[1769468108716,9.4244434,2932.2,2931.4,5.72225437]
[1769468109527,0.002,2932.0,2931.4,5.72225437]
[1769468110035,0.002,2932.0,2931.5,7.7810898]
[1769468121944,0.002,2932.0,2931.7,0.001]
[1769468129047,0.002,2932.2,2931.7,14.25491158]
[1769468129251,0.002,2932.2,2931.8,8.53165721]
[1769468133453,0.002,2932.0,2931.8,8.53165721]
[1769468133660,0.002,2932.2,2931.8,8.53165721]
[1769468141162,0.002,2932.2,2931.7,1.42649116]
[1769468141334,0.002,2932.2,2931.7,0.001]
[1769468144841,8.74140426,2932.2,2931.9,0.001]
[1769468145037,0.002,2932.0,2931.9,0.001]
[1769468150370,8.64010559,2932.0,2931.9,0.001]
[1769468151351,8.64010559,2932.0,2931.3,0.001]
[1769468151554,9.50431615,2932.0,2931.3,0.001]
[1769468156684,9.50431615,2932.0,2931.5,0.001]
[1769468156978,0.002,2931.8,2931.5,0.001]
[1769468157479,0.002,2931.8,2931.5,8.50942174]
[1769468158953,0.002,2931.8,2931.5,0.001]
[1769468162165,0.86621056,2931.8,2931.5,0.001]
[1769468163081,0.002,2931.8,2931.5,0.001]
[1769468168791,0.002,2931.8,2931.7,0.001]
[1769468174889,0.002,2932.0,2931.7,0.001]
[1769468175093,0.002,2932.0,2931.7,8.50942174]
[1769468175477,0.002,2932.0,2931.7,0.001]
[1769468176365,0.002,2932.2,2931.8,8.50842174]
[1769468176691,0.002,2932.4,2931.8,8.50842174]
[1769468178563,0.002,2932.4,2931.7,0.85204217]
[1769468179003,0.002,2932.4,2931.7,9.06291873]
[1769468179604,0.002,2932.4,2931.7,8.21187656]
[1769468180982,0.002,2932.2,2931.7,8.21187656]
[1769468186817,8.83029889,2932.2,2931.7,0.001]
[1769468190424,9.68291069,2932.2,2931.7,0.001]
[1769468190916,8.96496248,2932.1,2931.7,0.001]
[1769468191112,9.81025632,2932.0,2931.3,0.001]
[1769468191318,9.81025632,2932.0,2930.7,5.72262564]
[1769468191715,9.81025632,2932.0,2930.6,8.93080334]
[1769468192927,8.82829889,2931.8,2930.6,8.93080334]
[1769468193130,8.82829889,2931.8,2930.8,0.001]
[1769468193333,8.82829889,2931.6,2930.8,0.001]
[1769468198432,9.68107758,2931.6,2930.8,0.001]
[1769468200812,10.7063488,2931.6,2930.8,0.001]
[1769468201641,8.82829889,2931.5,2930.0,8.93180334]
[1769468201814,8.82829889,2931.3,2930.0,8.93180334]
[1769468202436,9.85367875,2931.3,2930.0,8.93180334]
[1769468202640,8.82829889,2931.3,2930.0,8.93180334]
[1769468203147,8.82829889,2931.1,2930.0,8.93180334]
[1769468203636,8.82829889,2930.9,2930.0,8.93180334]
[1769468203841,0.88282989,2930.8,2930.0,8.93180334]
[1769468205042,9.71112878,2930.8,2930.2,0.001]
[1769468210650,10.5641413,2930.8,2930.2,0.001]
[1769468211554,9.63983001,2930.7,2930.2,0.001]
[1769468214258,10.49288929,2930.7,2930.2,0.001]
[1769468214434,1.24012743,2930.6,2930.2,0.001]
[1769468217756,1.24012743,2930.6,2930.4,0.001]
[1769468220732,2.09319509,2930.6,2930.4,0.001]
[1769468221076,2.09319864,2930.6,2930.4,0.001]
[1769468221832,0.716,2930.5,2930.4,0.001]
[1769468222159,1.8263422,2930.5,2930.4,0.001]
[1769468223663,10.75117221,2930.5,2930.2,0.001]
[1769468223849,11.60426994,2930.5,2930.2,0.001]
[1769468224160,11.60426994,2930.5,2930.0,0.001]
[1769468226360,10.75117221,2930.5,2930.0,0.001]
[1769468226535,0.88282989,2930.4,2930.0,0.001]
[1769468228332,1.8263422,2930.5,2930.0,0.001]
[1769468228655,0.716,2930.5,2930.0,0.001]
[1769468229062,0.716,2930.5,2930.0,9.00333326]
[1769468229369,1.56909724,2930.5,2930.2,0.001]
[1769468231853,0.716,2930.5,2930.2,0.001]
[1769468232761,1.56909745,2930.5,2930.2,0.001]
[1769468233267,0.716,2930.5,2930.2,0.001]
[1769468240265,0.85307964,2930.6,2930.2,0.001]
[1769468240468,0.716,2930.5,2930.2,0.001]
[1769468240875,0.002,2930.3,2930.2,0.001]
[1769468250083,0.91613814,2931.1,2930.3,8.25825775]
[1769468250289,0.67462779,2931.3,2930.4,8.25825775]
[1769468250464,1.39062779,2931.3,2930.4,8.25825775]
[1769468253884,0.002,2931.1,2930.4,8.25825775]
[1769468265991,0.002,2931.1,2930.6,8.25925775]
[1769468277891,0.002,2931.1,2930.8,0.001]
[1769468282504,8.87926703,2931.1,2930.2,0.001]
[1769468282804,8.87726703,2930.9,2930.2,0.001]
[1769468283794,8.87726703,2930.7,2930.2,0.001]
[1769468284105,0.85300941,2930.8,2930.2,0.001]
[1769468284106,9.59226703,2930.6,2930.2,0.001]
[1769468285206,0.715,2930.6,2930.2,0.001]
[1769468287399,1.5680826,2930.6,2930.2,0.001]
[1769468288703,0.715,2930.6,2930.2,0.001]
[1769468288910,1.56807271,2930.6,2930.2,0.001]
[1769468289407,1.56807271,2930.6,2930.4,0.001]
[1769468291191,0.715,2930.6,2930.4,0.001]
[1769468293892,0.8879267,2931.0,2930.4,0.001]
[1769468293893,0.716,2930.5,2930.4,0.001]
[1769468295684,0.716,2930.6,2930.4,0.001]
[1769468296016,0.716,2930.6,2930.4,8.41678252]
[1769468299011,0.716,2930.6,2930.4,0.001]
[1769468299211,0.716,2930.6,2930.2,0.001]
[1769468299388,1.04373978,2930.5,2930.2,0.001]
[1769468299588,1.04373978,2930.5,2930.0,0.001]
[1769468300715,1.04373978,2930.5,2930.4,0.001]
[1769468300918,1.04373978,2930.5,2930.0,0.001]
[1769468302892,0.85302661,2930.8,2930.0,9.07363803]
[1769468303220,0.716,2930.7,2930.0,9.07363803]
[1769468304088,0.716,2930.6,2930.0,9.07363803]
[1769468312721,0.002,2930.4,2930.2,0.001]
[1769468322934,0.002,2930.4,2930.2,9.07363803]
[1769468323960,0.002,2930.4,2930.2,0.001]